fUSD/lending_fUSD_20240327
["ID","MTS","AMOUNT","RATE_DAILY","PERIOD"]
[320702090,1711519832131,-2141.8382844,0.00038458,2]
[320702091,1711519832289,-2925.0,0.00038458,2]
[320702092,1711519832301,-700.0,0.00038458,2]
[320702093,1711519832317,-808.4224841,0.00038458,2]
[320702094,1711519832338,-1239.08398397,0.00038458,2]
[320702095,1711519832356,-792.99802951,0.00038458,2]
[320702115,1711519837998,-628.96601562,0.00038458,2]
[320702116,1711519838010,-17927.1811781,0.00038458,2]
[320702117,1711519838019,-1100.0,0.0004,7]
[320702118,1711519838029,-1000.0,0.00043,10]
[320702119,1711519838038,-837.76931125,0.000431,12]
[320702120,1711519838049,-286.89369707,0.000431,12]
[320702121,1711519838059,-194.59469719,0.00044,32]
[320702122,1711519838068,-449.55,0.00044631,2]
[320702123,1711519838077,-2109.35919874,0.00045,7]
[320702124,1711519838087,-250.0,0.00045637,110]
[320702125,1711519838096,-2688.85,0.00045642,120]
[320702126,1711519838109,-258.88,0.00045659,120]
[320702127,1711519838118,-1380.03,0.00046171,2]
[320702128,1711519838127,-165.32,0.0004643,15]
[320702129,1711519838137,-2991.95,0.00046468,120]
[320702130,1711519838146,-212.29,0.00046478,2]
[320702131,1711519838156,-173.34,0.00046552,120]
[320702132,1711519838167,-162.0,0.0004676,2]
[320702133,1711519838177,-449.55,0.00046895,2]
[320702134,1711519838186,-156.33718315,0.00047103,30]
[320702135,1711519838195,-902.8,0.00047353,2]
[320702136,1711519838205,-155.15974478,0.00047606,30]
[320702137,1711519838214,-158.91989118,0.00047766,30]
[320702138,1711519838225,-167.02,0.00047812,2]
[320702139,1711519838234,-155.15974478,0.00048051,30]
[320702140,1711519838244,-89.8985343,0.00048176,30]
[320702141,1711519838289,-72.99960102,0.00048176,30]
[320702142,1711519838299,-151.032714,0.00048198,97]
[320702143,1711519838309,-151.032714,0.00048498,98]
[320702144,1711519838318,-1035.0,0.000485,30]
[320702145,1711519838327,-359.1,0.00048521,2]
[320702146,1711519838337,-1026.0,0.000486,7]
[320702147,1711519838346,-177.42,0.00048652,120]
[320702148,1711519838355,-1020.0,0.000487,117]
[320702149,1711519838364,-1038.77264,0.0004875,43]
[320702150,1711519838375,-501.4088,0.0004878,2]
[320702151,1711519838384,-151.032714,0.00048798,99]
[320702152,1711519838394,-2385.55734129,0.000488,2]
[320702153,1711519838403,-474.31409216,0.000488,2]
[320702154,1711519838413,-15000.0,0.000488,12]
[320702155,1711519838424,-800.0,0.00048844,25]
[320702156,1711519838434,-10257.63380862,0.0004887,25]
[320702157,1711519838444,-153.41693916,0.0004887,40]
[320702158,1711519838453,-204.0832479,0.0004887,21]
[320702159,1711519838463,-922.68771664,0.0004887,13]
[320702160,1711519838473,-1247.3503112,0.00048879,60]
[320702161,1711519838484,-1554025.85348142,0.0004888,2]
[320702162,1711519838497,-250.88068151,0.0004888,2]
[320702163,1711519838519,-6365.8624,0.0004888,2]
[320702164,1711519838531,-956.32562019,0.0004888,2]
[320702165,1711519838543,-275.10882941,0.0004888,2]
[320702166,1711519838654,-40372.88050677,0.0004888,2]
[320702167,1711519838805,-0.00257899,0.0004888,2]
[320702168,1711519840049,-8228.12426672,0.0004888,2]
[320702169,1711519840062,-8947.21879473,0.0004888,2]
[320702170,1711519840075,-8943.78386462,0.0004888,2]
[320702171,1711519840087,-9077.54866152,0.0004888,2]
[320702172,1711519840100,-8943.84023489,0.0004888,2]
[320702173,1711519840113,-1929.69204776,0.0004888,2]
[320702181,1711519843225,-24099.71970814,0.0004888,2]
[320702182,1711519843364,-1006.53324917,0.0004888,2]
[320702183,1711519843376,-3181.43208561,0.0004888,2]
[320702184,1711519843468,-4756.34026723,0.0004888,2]
[320702189,1711519846072,-5978.24,0.0004888,2]
[320702190,1711519846133,-29352.24610552,0.0004888,2]
[320702191,1711519846257,-585.79333653,0.0004888,2]
[320702192,1711519846339,-12872.0812522,0.0004888,2]
[320702193,1711519846360,-535.806,0.0004888,2]
[320702194,1711519846517,-349.74553949,0.0004888,2]
[320702211,1711520734654,-2202.5232927,0.00023886,2]
[320702212,1711520734677,-614.37641812,0.00023887,2]
[320702213,1711520734698,-154.40795187,0.000239,2]
[320702214,1711520734722,-224.76344794,0.00024,2]
[320702215,1711520734742,-2385.9793,0.00034267,2]
[320702216,1711520734765,-262.08020036,0.00034365,4]
[320702217,1711520734784,-1397.06,0.00034365,4]
[320702218,1711520734804,-228.55243056,0.00034365,4]
[320702219,1711520734826,-718.60420916,0.00034365,4]
[320702220,1711520734848,-150.0,0.00034366,3]
[320702221,1711520734868,-4003.74580555,0.00034367,2]
[320702222,1711520734887,-323.09955809,0.00034367,4]
[320702223,1711520734907,-938.12210125,0.00034367,4]
[320702224,1711520734930,-944068.6852844,0.00034367,4]
[320702225,1711520841486,-947.72553091,0.00034367,4]
[320702226,1711520841509,-106.55095709,0.00037258,2]
[320702227,1711520860632,-191.74101816,0.00034067,4]
[320702228,1711520860653,-2040.45065008,0.00037258,2]
[320702229,1711520860673,-204.0832479,0.00037524,9]
[320702230,1711520860693,-807.35175206,0.00037757,8]
[320702231,1711520860714,-153.55361089,0.00037757,2]
[320702232,1711520860738,-150.5,0.00037826,15]
[320702233,1711520860761,-150.5,0.00037836,15]
[320702234,1711520860781,-150.5,0.00037846,15]
[320702235,1711520860802,-1478.65479558,0.00037852,2]
[320702236,1711520860824,-155.28046975,0.00037853,4]
[320702237,1711520860845,-811.47476779,0.00037853,4]
[320702238,1711520860865,-277.28347538,0.00037853,4]
[320702239,1711520860884,-172.69101799,0.00037854,2]
[320702240,1711520860904,-2166.95825015,0.00037854,4]
[320702241,1711520860924,-1254.20020675,0.00037854,120]
[320702242,1711520860943,-410.05963326,0.00037854,4]
[320702243,1711520860964,-187.33831917,0.00037854,4]
[320702244,1711520860984,-854.63911886,0.00037854,5]
[320702245,1711520861003,-232.20623137,0.00037854,4]
[320702246,1711520861022,-776.83603317,0.00037854,2]
[320702247,1711520861046,-1756.57153444,0.00037854,4]
[320702248,1711520861067,-1429.16042548,0.00037854,4]
[320702249,1711520861088,-4423.27045175,0.00037854,4]
[320702250,1711520861110,-5355.39539731,0.00037854,4]
[320702251,1711520861132,-593.34627763,0.00037854,2]
[320702252,1711520861153,-305.58963213,0.00037854,4]
[320702253,1711520861174,-155.0,0.00037854,4]
[320702254,1711520861194,-155.4765796,0.00037854,4]
[320702255,1711520861215,-1665.99461186,0.00037854,4]
[320702256,1711520861406,-2343.94057078,0.00037854,4]
[320702257,1711520861426,-1930.34898614,0.00037854,4]
[320702258,1711520861446,-319.30622196,0.00037854,4]
[320702259,1711520861469,-12696.35008103,0.00037854,4]
[320702260,1711520861492,-1247.3503112,0.00037855,30]
[320702261,1711520861514,-1325.69160646,0.00037855,30]
[320702262,1711520861534,-150.0,0.00037855,2]
[320702263,1711520861554,-35654.33172895,0.00037855,4]
[320702264,1711520861574,-616.63243247,0.00037856,4]
[320702265,1711520861595,-1415249.9405525,0.00037856,2]
[320702266,1711520873044,-2075.29550823,0.00034366,4]
[320702267,1711520873064,-2957.62674015,0.00034367,4]
[320702268,1711520873083,-239.60917504,0.00037855,4]
[320702269,1711520873104,-194727.46857658,0.00037856,2]
[320702271,1711521032150,-192.35470216,0.00037251,4]
[320702272,1711521032162,-830.83398722,0.00037252,4]
[320702273,1711521032172,-155.0,0.00037253,4]
[320702274,1711521032181,-485.16612194,0.00037254,4]
[320702275,1711521032190,-410.85739541,0.00037257,4]
[320702276,1711521032201,-1274.86040062,0.00037258,4]
[320702277,1711521032210,-227.3862527,0.00037757,2]
[320702278,1711521032221,-3059.84113995,0.00037757,2]
[320702279,1711521032233,-2308.8609948,0.00037757,2]
[320702280,1711521032242,-422.2,0.00037846,2]
[320702281,1711521032251,-172.36634446,0.00037855,2]
[320702282,1711521032260,-179.42345923,0.00037855,4]
[320702283,1711521032269,-1268.74600163,0.00037856,2]
[320702284,1711521032285,-567.36238725,0.00037856,2]
[320702285,1711521032296,-550.3716276,0.00037856,2]
[320702286,1711521032328,-541.99144495,0.00037856,2]
[320702287,1711521032386,-3824.5924688,0.00037856,2]
[320702288,1711521032398,-36129.76011885,0.00037856,2]
[320702289,1711521032409,-35266.98820004,0.00037856,2]
[320702290,1711521032421,-81875.02165,0.00037856,2]
[320702300,1711521038122,-362.60725604,0.00037856,2]
[320702301,1711521038135,-10412.98669654,0.00037856,2]
[320702302,1711521038234,-235790.64272004,0.00037856,2]
[320702303,1711521038244,-1539.06992296,0.00037857,4]
[320702304,1711521038254,-499.99,0.00037858,2]
[320702305,1711521038264,-452.22705036,0.00037858,2]
[320702306,1711521038302,-547.76294964,0.00037858,2]
[320702307,1711521038311,-18000.0,0.00037858,2]
[320702308,1711521038321,-150.99,0.00037858,10]
[320702309,1711521038330,-1000.0,0.0003799,2]
[320702310,1711521038339,-5859.81548037,0.00038,120]
[320702311,1711521038349,-422.2,0.00038084,2]
[320702312,1711521038360,-23900.0,0.00038094,2]
[320702313,1711521038371,-1526.29,0.00038224,2]
[320702314,1711521038382,-227.38625269,0.00038293,2]
[320702315,1711521038393,-904.0,0.000384,2]
[320702316,1711521038403,-4000.0,0.00038458,30]
[320702317,1711521038413,-4845.72,0.00038458,30]
[320702318,1711521038422,-400.0,0.00038658,2]
[320702319,1711521038432,-1000.0,0.00038685,2]
[320702320,1711521038442,-155.0,0.000387,4]
[320702321,1711521038452,-227.38625269,0.00038829,2]
[320702322,1711521038463,-227.38625269,0.00039364,2]
[320702323,1711521038477,-1195.84,0.00039651,2]
[320702324,1711521038487,-3346.65,0.00039674,2]
[320702325,1711521038497,-1000.0,0.00039726,2]
[320702326,1711521038508,-397.39647589,0.00039742,2]
[320702327,1711521038518,-9718.11,0.00039879,2]
[320702328,1711521038529,-716.40157363,0.000399,2]
[320702329,1711521038540,-227.38625269,0.000399,2]
[320702330,1711521038550,-509.21,0.00039905,2]
[320702331,1711521038560,-320.14,0.00039999,2]
[320702332,1711521038569,-53750.49462938,0.0004,2]
[320702333,1711521038579,-10431.7034283,0.0004,7]
[320702334,1711521038588,-7937.94912886,0.0004,4]
[320702335,1711521038597,-5742.09513247,0.0004,4]
[320702336,1711521038606,-541.27619398,0.0004,120]
[320702337,1711521038615,-22038.94073476,0.0004,4]
[320702338,1711521038625,-3357.71176501,0.0004,4]
[320702339,1711521038634,-27116.20276935,0.0004,4]
[320702340,1711521038644,-892.02580912,0.0004,30]
[320702341,1711521038653,-4122.3,0.00040007,2]
[320702342,1711521038662,-703.17,0.00040054,120]
[320702343,1711521038672,-320.14,0.00040108,2]
[320702345,1711521038682,-250.0,0.00040115,110]
[320702346,1711521038691,-422.2,0.00040177,2]
[320702347,1711521038701,-5368.70213469,0.00040187,2]
[320702348,1711521038710,-320.14,0.00040218,2]
[320702349,1711521038720,-3304.63,0.00040258,2]
[320702350,1711521038730,-320.14,0.00040328,2]
[320702351,1711521038743,-320.14,0.00040437,2]
[320702352,1711521038752,-807.35175206,0.0004049,9]
[320702353,1711521038761,-320.14,0.00040547,2]
[320702354,1711521038771,-320.14,0.00040657,2]
[320702355,1711521038781,-320.14,0.00040766,2]
[320702356,1711521038791,-320.14,0.00040876,2]
[320702357,1711521038803,-320.14,0.00040986,2]
[320702358,1711521038812,-150.0,0.00041071,2]
[320702359,1711521038822,-320.14,0.00041096,2]
[320702360,1711521038831,-320.14,0.00041205,2]
[320702361,1711521038843,-320.14,0.00041315,2]
[320702362,1711521038853,-320.14,0.00041425,2]
[320702363,1711521038863,-320.14,0.00041534,2]
[320702364,1711521038873,-320.14,0.00041644,2]
[320702365,1711521038884,-428.01,0.0004173,2]
[320702366,1711521038894,-320.14,0.00041754,2]
[320702367,1711521038905,-716.4015735,0.000418,2]
[320702368,1711521038915,-320.14,0.00041863,2]
[320702369,1711521038925,-320.14,0.00041973,2]
[320702370,1711521038935,-320.14,0.00042083,2]
[320702371,1711521038945,-355.448918,0.00042192,14]
[320702372,1711521038955,-5368.70213469,0.00042617,2]
[320702373,1711521038964,-1000.0,0.00042738,2]
[320702374,1711521038975,-153.55361087,0.00042891,17]
[320702375,1711521038985,-355.448918,0.00043014,14]
[320702376,1711521038994,-9484.8076919,0.00043065,17]
[320702377,1711521039004,-807.35175206,0.00043222,11]
[320702378,1711521039014,-250.0,0.00043574,2]
[320702379,1711521039024,-175.3,0.00043618,120]
[320702380,1711521039034,-500.0,0.00043647,2]
[320702381,1711521039043,-177.42,0.00043649,120]
[320702382,1711521039054,-500.22,0.00043649,2]
[320702383,1711521039064,-250.0,0.00043687,2]
[320702384,1711521039074,-716.4015735,0.000437,2]
[320702385,1711521039083,-165.32,0.00043712,15]
[320702386,1711521039093,-10000.0,0.00043754,60]
[320702387,1711521039103,-152.41,0.00043772,120]
[320702388,1711521039113,-2493.29,0.00043831,2]
[320702389,1711521039124,-355.448918,0.00043836,14]
[320702390,1711521039134,-428.01,0.00043993,2]
[320702391,1711521039143,-1380.74,0.00044036,2]
[320702392,1711521039153,-500.0,0.00044116,2]
[320702393,1711521039162,-155.41,0.00044222,2]
[320702394,1711521039171,-155.41,0.00044443,2]
[320702395,1711521039180,-355.448918,0.00044658,14]
[320702396,1711521039190,-156.63077705,0.00044767,2]
[320702397,1711521039199,-9484.8076918,0.0004477,19]
[320702398,1711521039209,-3802.4836,0.00044927,2]
[320702399,1711521039220,-14571.7201,0.00044927,2]
[320702400,1711521039230,-18060.9569,0.00044927,2]
[320702401,1711521039239,-500.0,0.00045,14]
[320702402,1711521039249,-5368.70213469,0.00045047,2]
[320702403,1711521039259,-175.32,0.00045172,2]
[320702404,1711521039269,-355.448918,0.00045479,14]
[320702405,1711521039279,-716.4015735,0.000456,2]
[320702406,1711521039289,-807.35175206,0.00045955,12]
[320702407,1711521039299,-422.2,0.0004599,2]
[320702408,1711521039308,-422.2,0.0004599,2]
[320702409,1711521039318,-422.2,0.0004599,2]
[320702410,1711521039327,-500000.0,0.00046,4]
[320702411,1711521039336,-292.23,0.00046229,2]
[320702412,1711521039348,-924.51,0.00046229,2]
[320702413,1711521039357,-162.88,0.00046229,2]
[320702414,1711521039367,-415.7,0.00046229,2]
[320702415,1711521039378,-150.0,0.00046229,2]
[320702416,1711521039388,-150.0,0.00046229,2]
[320702417,1711521039397,-415.7,0.00046229,2]
[320702418,1711521039407,-415.7,0.00046229,2]
[320702419,1711521039416,-924.51,0.00046229,2]
[320702420,1711521039426,-150.0,0.00046229,2]
[320702421,1711521039435,-347.44,0.00046229,2]
[320702422,1711521039444,-150.0,0.00046229,2]
[320702423,1711521039454,-415.7,0.00046229,2]
[320702424,1711521039463,-924.51,0.00046229,2]
[320702425,1711521039618,-347.44,0.00046229,2]
[320702426,1711521039629,-517.72,0.00046229,2]
[320702427,1711521039638,-415.7,0.00046229,2]
[320702428,1711521039647,-150.0,0.00046229,2]
[320702429,1711521039657,-924.51,0.00046229,2]
[320702430,1711521039666,-517.72,0.00046229,2]
[320702431,1711521039676,-517.72,0.00046229,2]
[320702432,1711521039685,-415.7,0.00046229,2]
[320702433,1711521039695,-415.7,0.00046229,2]
[320702434,1711521039705,-415.7,0.00046229,2]
[320702435,1711521039714,-415.7,0.00046229,2]
[320702436,1711521039725,-409.3,0.00046229,2]
[320702437,1711521039735,-347.44,0.00046229,2]
[320702438,1711521039747,-347.44,0.00046229,2]
[320702439,1711521039758,-415.7,0.00046229,2]
[320702440,1711521039767,-409.3,0.00046229,2]
[320702441,1711521039777,-347.44,0.00046229,2]
[320702442,1711521039787,-415.7,0.00046229,2]
[320702443,1711521039796,-347.44,0.00046229,2]
[320702444,1711521039809,-415.7,0.00046229,2]
[320702445,1711521039818,-347.44,0.00046229,2]
[320702446,1711521039827,-409.3,0.00046229,2]
[320702447,1711521039837,-415.7,0.00046229,2]
[320702448,1711521039846,-347.44,0.00046229,2]
[320702449,1711521039855,-347.44,0.00046229,2]
[320702450,1711521039865,-409.3,0.00046229,2]
[320702451,1711521039874,-347.44,0.00046229,2]
[320702452,1711521039885,-527.73,0.00046229,2]
[320702453,1711521039895,-409.3,0.00046229,2]
[320702454,1711521039905,-488.72,0.00046229,2]
[320702455,1711521039916,-349.96,0.00046229,2]
[320702456,1711521039926,-150.0,0.00046229,2]
[320702457,1711521039936,-246.11,0.00046229,2]
[320702459,1711521039945,-339.98,0.00046229,2]
[320702460,1711521039956,-150.0,0.00046229,2]
[320702461,1711521039967,-150.0,0.00046229,2]
[320702462,1711521039976,-150.0,0.00046229,2]
[320702463,1711521039985,-428.01,0.00046257,2]
[320702465,1711521039994,-355.448918,0.00046301,14]
[320702466,1711521040005,-339.22517766,0.00046436,10]
[320702467,1711521040014,-9484.8076918,0.00046474,22]
[320702468,1711521040024,-163.67173015,0.00046606,30]
[320702469,1711521040035,-154.18221895,0.00047048,30]
[320702470,1711521040048,-355.448918,0.00047123,14]
[320702471,1711521040060,-500.0,0.000474,2]
[320702472,1711521040070,-5368.70213469,0.00047477,2]
[320702473,1711521040081,-1000.0,0.00047487,2]
[320702474,1711521040091,-716.4015735,0.000475,2]
[320702475,1711521040102,-152.02204846,0.00047502,30]
[320702476,1711521040112,-158.91989118,0.00047568,30]
[320702477,1711521040122,-158.91989118,0.00047663,30]
[320702478,1711521040133,-151.032715,0.00047798,93]
[320702479,1711521040144,-58036.70373674,0.00047919,7]
[320702480,1711521040155,-355.448918,0.00047945,14]
[320702481,1711521040165,-503.6111413,0.00048,100]
[320702482,1711521040174,-155.15974478,0.00048009,30]
[320702483,1711521040184,-153.55361087,0.00048024,37]
[320702484,1711521040194,-39773.7506,0.00048079,2]
[320702485,1711521040204,-9484.8076918,0.00048179,24]
[320702486,1711521040214,-151.032715,0.00048198,94]
[320702487,1711521040226,-156.33718315,0.00048222,30]
[320702488,1711521040235,-152.43888631,0.00048223,30]
[320702489,1711521040245,-1115.46185,0.0004839,42]
[320702490,1711521040255,-151.032715,0.00048498,95]
[320702491,1711521040265,-788.20936551,0.00048499,2]
[320702492,1711521040275,-209.82021558,0.000485,5]
[320702493,1711521040285,-428.01,0.00048521,2]
[320702494,1711521040295,-2076.0,0.00048537,2]
[320702495,1711521040317,-807.35175206,0.00048688,13]
[320702496,1711521040339,-275.52,0.000487,120]
[320702497,1711521040358,-4369.83100052,0.000487,120]
[320702498,1711521040381,-1111.0,0.000487,4]
[320702499,1711521040397,-159.82463344,0.00048754,3]
[320702500,1711521040416,-355.448918,0.00048767,14]
[320702501,1711521040433,-151.032715,0.00048798,96]
[320702502,1711521040448,-709.36350887,0.00048798,10]
[320702503,1711521040468,-424.19093922,0.00048854,4]
[320702504,1711521040491,-422.2,0.00048869,2]
[320702505,1711521040509,-259.8506154,0.00048878,4]
[320702506,1711521040530,-155.32396077,0.00048878,4]
[320702507,1711521040551,-7186.6716276,0.00048878,4]
[320702508,1711521040566,-3361.26648447,0.00048878,4]
[320702509,1711521040582,-190.18294877,0.00048879,4]
[320702510,1711521040602,-3339.31168469,0.00048879,4]
[320702511,1711521040617,-4174.18283576,0.00048879,4]
[320702512,1711521040637,-260.57586797,0.00048879,4]
[320702513,1711521040656,-155.36036315,0.00048879,4]
[320702515,1711521040680,-155.68323396,0.00048879,4]
[320702518,1711521040697,-409.90139962,0.00048879,4]
[320702520,1711521040716,-384.65068145,0.00048879,4]
[320702521,1711521040734,-237.96387937,0.00048879,4]
[320702522,1711521040750,-99197.49397095,0.0004888,2]
[320702523,1711521040766,-1474.82292682,0.0004888,4]
[320702524,1711521040783,-169.83745372,0.0004888,4]
[320702525,1711521040798,-155.47290894,0.0004888,2]
[320702526,1711521040816,-2000.0,0.0004888,7]
[320702527,1711521040831,-672.0,0.00048902,7]
[320702528,1711521040846,-155.15974478,0.00048908,30]
[320702529,1711521040861,-150.0,0.00048959,7]
[320702530,1711521040875,-150.0,0.00048971,7]
[320702531,1711521040891,-150.0,0.00048975,7]
[320702532,1711521040906,-150.0,0.00048976,7]
[320702533,1711521040921,-150.0,0.00048981,7]
[320702534,1711521040936,-150.0,0.00048983,7]
[320702535,1711521040951,-150.0,0.00048983,7]
[320702536,1711521040967,-150.0,0.00048985,7]
[320702537,1711521040986,-193.11976501,0.00048985,7]
[320702538,1711521041002,-150.0,0.00048986,7]
[320702539,1711521041016,-422.2,0.0004899,2]
[320702540,1711521041037,-1394.15700575,0.00048994,7]
[320702541,1711521041052,-300.0,0.00048997,7]
[320702542,1711521041068,-150.0,0.00048999,7]
[320702543,1711521041083,-250000.0,0.00049,7]
[320702544,1711521041100,-150.0,0.00049002,7]
[320702545,1711521041116,-150.0,0.00049005,7]
[320702546,1711521041131,-152.10412595,0.00049013,7]
[320702547,1711521041146,-150.0,0.00049039,7]
[320702548,1711521041162,-150.0,0.00049057,7]
[320702549,1711521041177,-154.14604573,0.00049059,7]
[320702550,1711521041193,-150.0,0.0004906,7]
[320702551,1711521041209,-150.0,0.00049062,7]
[320702552,1711521041224,-300.0,0.00049063,7]
[320702553,1711521041237,-300.0,0.00049066,7]
[320702554,1711521041252,-150.0,0.00049071,7]
[320702555,1711521041266,-10000.0,0.00049071,30]
[320702556,1711521041281,-150.0,0.00049075,7]
[320702557,1711521041295,-307.68911322,0.00049077,7]
[320702558,1711521041309,-150.0,0.00049081,7]
[320702559,1711521041324,-150.0,0.00049085,7]
[320702560,1711521041340,-150.0,0.00049087,7]
[320702561,1711521041354,-150.0,0.00049087,7]
[320702562,1711521041370,-150.0,0.0004909,7]
[320702563,1711521041384,-150.0,0.00049092,7]
[320702564,1711521041548,-150.0,0.00049101,7]
[320702565,1711521041557,-150.0,0.00049114,7]
[320702566,1711521041566,-150.0,0.00049115,7]
[320702567,1711521041576,-150.0,0.00049121,7]
[320702568,1711521041585,-150.0,0.00049127,7]
[320702569,1711521041595,-150.0,0.0004913,7]
[320702570,1711521041604,-150.0,0.00049132,7]
[320702571,1711521041614,-150.0,0.00049133,7]
[320702572,1711521041625,-150.0,0.00049134,7]
[320702573,1711521041635,-150.0,0.00049137,7]
[320702574,1711521041645,-150.0,0.00049146,7]
[320702575,1711521041654,-150.0,0.00049147,7]
[320702576,1711521041663,-150.0,0.00049149,7]
[320702577,1711521041672,-150.0,0.00049152,7]
[320702578,1711521041681,-150.0,0.00049158,7]
[320702579,1711521041691,-788.20936551,0.00049168,2]
[320702580,1711521041701,-150.0,0.00049173,7]
[320702581,1711521041710,-150.0,0.00049194,7]
[320702582,1711521041722,-150.0,0.00049194,7]
[320702583,1711521041731,-151.032714,0.00049198,100]
[320702584,1711521041741,-496.0,0.000492,37]
[320702585,1711521041751,-150.0,0.000492,17]
[320702586,1711521041761,-150.0,0.00049203,7]
[320702587,1711521041771,-150.0,0.00049205,7]
[320702588,1711521041780,-150.0,0.00049208,7]
[320702589,1711521041791,-150.0,0.00049223,7]
[320702590,1711521041802,-422.2,0.00049239,2]
[320702591,1711521041813,-301.26430506,0.00049244,7]
[320702592,1711521041823,-636.00726772,0.00049248,4]
[320702593,1711521041834,-20634.25104346,0.00049249,10]
[320702594,1711521041845,-200.0,0.00049249,7]
[320702595,1711521041855,-2000.0,0.00049249,7]
[320702596,1711521041865,-200.0,0.00049249,7]
[320702597,1711521041874,-150.0,0.0004926,2]
[320702598,1711521041884,-156.63077705,0.00049263,2]
[320702599,1711521041894,-673.65490502,0.00049265,60]
[320702600,1711521041903,-7220.9229866,0.00049266,2]
[320702601,1711521041912,-155292.1939345,0.00049266,2]
[320702602,1711521041921,-8821.0992297,0.00049266,2]
[320702603,1711521041930,-3750.0,0.000493,2]
[320702604,1711521041939,-1272.06884863,0.000493,2]
[320702605,1711521041948,-1156.59374322,0.00049369,7]
[320702606,1711521041957,-716.4015735,0.000494,2]
[320702607,1711521041966,-151.032714,0.00049498,101]
[320702608,1711521041980,-355.448918,0.00049589,30]
[320702609,1711521041991,-1026.0,0.000496,7]
[320702610,1711521042001,-422.2,0.00049697,2]
[320702611,1711521042009,-158.91989118,0.00049707,30]
[320702612,1711521042019,-2000.0,0.00049741,7]
[320702613,1711521042028,-200.0,0.00049741,7]
[320702614,1711521042037,-151.032714,0.00049798,102]
[320702615,1711521042047,-9484.8076918,0.00049884,26]
[320702616,1711521042058,-5000.0,0.000499,3]
[320702617,1711521042067,-5368.70213469,0.00049906,2]
[320702618,1711521042077,-177.57,0.0004997,15]
[320702619,1711521042086,-150.5,0.0004998,15]
[320702620,1711521042095,-150.5,0.0004999,15]
[320702621,1711521042105,-233.91285551,0.0005,30]
[320702622,1711521042115,-19367.2863221,0.0005,2]
[320702623,1711521042124,-2464.27161389,0.0005,30]
[320702624,1711521042134,-5000.0,0.0005,30]
[320702625,1711521042144,-500.0,0.0005,7]
[320702626,1711521042153,-1001.04859881,0.0005,2]
[320702627,1711521042163,-740.69425899,0.0005,120]
[320702628,1711521042173,-2569.0,0.0005,30]
[320702629,1711521042184,-90000.00038134,0.0005,30]
[320702630,1711521042193,-4520.0,0.0005,9]
[320702631,1711521042202,-10000.0,0.00050127,30]
[320702632,1711521042211,-250.0,0.000502,18]
[320702633,1711521042224,-2000.0,0.00050239,7]
[320702634,1711521042233,-200.0,0.00050239,7]
[320702635,1711521042241,-177.49805552,0.00050336,60]
[320702636,1711521042250,-151.032714,0.00050498,102]
[320702637,1711521042259,-243.70899105,0.000505,40]
[320702638,1711521042268,-155.15974478,0.00050581,60]
[320702639,1711521042277,-428.01,0.00050785,2]
[320702640,1711521042286,-151.032714,0.00050798,103]
[320702641,1711521042296,-1115.46185,0.0005089,53]
[320702642,1711521042305,-3346.65,0.00050906,120]
[320702643,1711521042315,-1906.701,0.00050947,120]
[320702644,1711521042324,-150.761,0.00050947,120]
[320702645,1711521042334,-971.46,0.00050947,120]
[320702646,1711521042343,-210.145,0.00050947,120]
[320702647,1711521042353,-1123.905,0.00050947,120]
[320702648,1711521042362,-2474.182,0.00050947,120]
[320702649,1711521042372,-13342.866,0.00050947,120]
[320702650,1711521042382,-1395.988,0.00050947,120]
[320702651,1711521042392,-492.089,0.00050947,120]
[320702652,1711521042401,-399.727,0.00050947,120]